[Event "*** MasterClass Titled Tuesday Blitz"]
[Site "Chess.com"]
[Date "2017.12.05"]
[Round "9"]
[White "sandromareco"]
[Black "MITerryble"]
[Result "1/2-1/2"]
[WhiteElo "2622"]
[BlackElo "2665"]
[TimeControl "180+2"]
[EndTime "16:16:34 PST"]
[Termination "Game drawn - insufficient material"]

1. e4 {[%clk 0:03:01.9]} 1... e6 {[%clk 0:02:58.7]} 2. d4 {[%clk 0:03:02.6]}
2... d5 {[%clk 0:02:52.8]} 3. Nc3 {[%clk 0:03:03.6]} 3... Nf6 {[%clk 0:02:53.3]}
4. e5 {[%clk 0:03:04.3]} 4... Nfd7 {[%clk 0:02:54.3]} 5. f4 {[%clk 0:03:06.2]}
5... c5 {[%clk 0:02:55.7]} 6. Nf3 {[%clk 0:03:07.8]} 6... Nc6 {[%clk 0:02:57.5]}
7. Be3 {[%clk 0:03:08.7]} 7... Be7 {[%clk 0:02:58.9]} 8. Qd2 {[%clk 0:03:09.1]}
8... O-O {[%clk 0:02:59.6]} 9. h4 {[%clk 0:03:03.2]} 9... cxd4 {[%clk
0:02:47.8]} 10. Nxd4 {[%clk 0:03:04]} 10... Bc5 {[%clk 0:02:45.3]} 11. O-O-O
{[%clk 0:02:48]} 11... a6 {[%clk 0:02:45.2]} 12. Qf2 {[%clk 0:02:48.4]} 12...
Nxd4 {[%clk 0:02:44.6]} 13. Bxd4 {[%clk 0:02:49]} 13... Qc7 {[%clk 0:02:43.5]}
14. h5 {[%clk 0:02:48.5]} 14... b5 {[%clk 0:02:41.1]} 15. Bd3 {[%clk 0:02:46.8]}
15... Bxd4 {[%clk 0:02:32.8]} 16. Qxd4 {[%clk 0:02:47.4]} 16... Nc5 {[%clk
0:02:15.5]} 17. h6 {[%clk 0:02:43.6]} 17... g6 {[%clk 0:02:16]} 18. Kb1 {[%clk
0:02:43.4]} 18... Rb8 {[%clk 0:02:16]} 19. Ne2 {[%clk 0:02:39.2]} 19... b4
{[%clk 0:02:05.8]} 20. Qf2 {[%clk 0:02:30.7]} 20... a5 {[%clk 0:01:51.1]} 21.
Qh4 {[%clk 0:02:30.8]} 21... Qd8 {[%clk 0:01:51.3]} 22. Qxd8 {[%clk 0:02:22.7]}
22... Rxd8 {[%clk 0:01:52]} 23. Nd4 {[%clk 0:02:24]} 23... Bd7 {[%clk
0:01:47.7]} 24. Kc1 {[%clk 0:02:20.3]} 24... Rbc8 {[%clk 0:01:40.7]} 25. Kd2
{[%clk 0:02:20.1]} 25... Na4 {[%clk 0:01:39.8]} 26. Rb1 {[%clk 0:02:20.8]} 26...
Nc5 {[%clk 0:01:31.8]} 27. Ke3 {[%clk 0:02:21]} 27... Kf8 {[%clk 0:01:28.8]} 28.
g4 {[%clk 0:02:20.8]} 28... Ke7 {[%clk 0:01:29.7]} 29. Rhf1 {[%clk 0:02:13.9]}
29... Rg8 {[%clk 0:01:25.8]} 30. Nf3 {[%clk 0:02:14.5]} 30... Bc6 {[%clk
0:00:50.8]} 31. Kd4 {[%clk 0:02:12]} 31... Nd7 {[%clk 0:00:45.7]} 32. Rbc1
{[%clk 0:02:11.3]} 32... Rb8 {[%clk 0:00:42]} 33. Rf2 {[%clk 0:02:10.4]} 33...
Bb5 {[%clk 0:00:42.8]} 34. c4 {[%clk 0:01:55.4]} 34... dxc4 {[%clk 0:00:36.8]}
35. Bxc4 {[%clk 0:01:55.3]} 35... Rgd8 {[%clk 0:00:36.5]} 36. Ke3 {[%clk
0:01:52.6]} 36... Bxc4 {[%clk 0:00:35.3]} 37. Rxc4 {[%clk 0:01:51.5]} 37... Nb6
{[%clk 0:00:37.1]} 38. Rd4 {[%clk 0:01:52]} 38... Rxd4 {[%clk 0:00:23.3]} 39.
Nxd4 {[%clk 0:01:52.7]} 39... Rc8 {[%clk 0:00:24.6]} 40. Ke4 {[%clk 0:01:38.5]}
40... Rc4 {[%clk 0:00:22.4]} 41. f5 {[%clk 0:01:32.8]} 41... Nd7 {[%clk
0:00:20.4]} 42. fxg6 {[%clk 0:01:13.3]} 42... fxg6 {[%clk 0:00:21.1]} 43. Rc2
{[%clk 0:01:07.7]} 43... Nc5+ {[%clk 0:00:19.4]} 44. Ke3 {[%clk 0:01:08.5]}
44... Rxc2 {[%clk 0:00:21.2]} 45. Nxc2 {[%clk 0:01:09.6]} 45... Na4 {[%clk
0:00:23.1]} 46. Nd4 {[%clk 0:01:05]} 46... Nxb2 {[%clk 0:00:16.6]} 47. Nc6+
{[%clk 0:01:05.5]} 47... Kf7 {[%clk 0:00:15.8]} 48. Nxa5 {[%clk 0:01:06.4]}
48... Na4 {[%clk 0:00:17.1]} 49. Kd3 {[%clk 0:01:00.5]} 49... Nc3 {[%clk
0:00:14.5]} 50. a3 {[%clk 0:00:59.7]} 50... Nd5 {[%clk 0:00:15.5]} 51. axb4
{[%clk 0:00:58.7]} 51... Nxb4+ {[%clk 0:00:17.3]} 52. Ke4 {[%clk 0:01:00.1]}
52... g5 {[%clk 0:00:17.8]} 53. Nb7 {[%clk 0:01:00.2]} 53... Nc6 {[%clk
0:00:09.6]} 54. Nc5 {[%clk 0:01:00.6]} 54... Nd8 {[%clk 0:00:08.2]} 55. Kd4
{[%clk 0:00:55.1]} 55... Kg6 {[%clk 0:00:09.4]} 56. Ke4 {[%clk 0:00:52.5]} 56...
Kxh6 {[%clk 0:00:09.8]} 57. Nd7 {[%clk 0:00:53.7]} 57... Kg6 {[%clk 0:00:10.5]}
58. Nf8+ {[%clk 0:00:54.7]} 58... Kg7 {[%clk 0:00:11.6]} 59. Nd7 {[%clk
0:00:55.9]} 59... Kf7 {[%clk 0:00:11.8]} 60. Nf6 {[%clk 0:00:56.6]} 60... h6
{[%clk 0:00:12.5]} 61. Nd7 {[%clk 0:00:57.5]} 61... Ke7 {[%clk 0:00:12.7]} 62.
Nf6 {[%clk 0:00:58.1]} 62... Kf7 {[%clk 0:00:13.9]} 63. Nd7 {[%clk 0:00:59.2]}
63... Kg7 {[%clk 0:00:15.1]} 64. Kd4 {[%clk 0:00:58.5]} 64... Nf7 {[%clk
0:00:14.4]} 65. Ke4 {[%clk 0:00:56.1]} 65... Nh8 {[%clk 0:00:12.9]} 66. Nc5
{[%clk 0:00:49.3]} 66... Kf7 {[%clk 0:00:14]} 67. Nd7 {[%clk 0:00:50.4]} 67...
Ng6 {[%clk 0:00:14.7]} 68. Nc5 {[%clk 0:00:51.6]} 68... Nf4 {[%clk 0:00:15.3]}
69. Nd7 {[%clk 0:00:52.8]} 69... h5 {[%clk 0:00:12.1]} 70. gxh5 {[%clk
0:00:53.4]} 70... Nxh5 {[%clk 0:00:13.9]} 71. Kf3 {[%clk 0:00:53.7]} 71... Nf4
{[%clk 0:00:09.1]} 72. Kg4 {[%clk 0:00:54.8]} 72... Kg6 {[%clk 0:00:10.3]} 73.
Nf8+ {[%clk 0:00:55.6]} 73... Kh6 {[%clk 0:00:11.6]} 74. Nd7 {[%clk 0:00:54.1]}
74... Ng6 {[%clk 0:00:10.9]} 75. Nc5 {[%clk 0:00:53.3]} 75... Nxe5+ {[%clk
0:00:11.6]} 76. Kg3 {[%clk 0:00:54.7]} 76... Kg6 {[%clk 0:00:07.1]} 77. Nxe6
{[%clk 0:00:55.7]} 77... Kf5 {[%clk 0:00:08.9]} 78. Nd4+ {[%clk 0:00:56.5]}
78... Ke4 {[%clk 0:00:09.5]} 79. Ne6 {[%clk 0:00:57.4]} 79... Kf5 {[%clk
0:00:10.2]} 80. Nd4+ {[%clk 0:00:57.8]} 80... Kf6 {[%clk 0:00:11.1]} 81. Ne2
{[%clk 0:00:57.2]} 81... Nf7 {[%clk 0:00:12.1]} 82. Nc3 {[%clk 0:00:57.6]} 82...
Nh6 {[%clk 0:00:13.9]} 83. Ne4+ {[%clk 0:00:57.5]} 83... Kg6 {[%clk 0:00:15.7]}
84. Kf3 {[%clk 0:00:57.2]} 84... Nf5 {[%clk 0:00:17.5]} 85. Kg4 {[%clk
0:00:56.7]} 85... Nh6+ {[%clk 0:00:18.4]} 86. Kf3 {[%clk 0:00:57.7]} 86... Kf5
{[%clk 0:00:18.7]} 87. Nxg5 {[%clk 0:00:55.4]} 87... Ng4 {[%clk 0:00:17.9]} 88.
Nh3 {[%clk 0:00:55.4]} 88... Ne5+ {[%clk 0:00:18.7]} 89. Kg3 {[%clk 0:00:56.3]}
89... Nf7 {[%clk 0:00:20.4]} 90. Nf2 {[%clk 0:00:57.1]} 90... Nd6 {[%clk
0:00:22.2]} 91. Nd1 {[%clk 0:00:56.7]} 91... Ne4+ {[%clk 0:00:22.5]} 92. Kf3
{[%clk 0:00:57]} 92... Nc3 {[%clk 0:00:24.3]} 93. Nxc3 {[%clk 0:00:55.8]}
1/2-1/2

[Event "*** MasterClass Titled Tuesday Blitz"]
[Site "Chess.com"]
[Date "2017.12.05"]
[Round "9"]
[White "TregubovP"]
[Black "champ2005"]
[Result "1/2-1/2"]
[WhiteElo "2498"]
[BlackElo "2439"]
[TimeControl "180+2"]
[EndTime "16:20:06 PST"]
[Termination "Game drawn by 50-move rule"]

1. d4 {[%clk 0:03:01.3]} 1... Nf6 {[%clk 0:03:00.3]} 2. c4 {[%clk 0:03:01.6]}
2... e6 {[%clk 0:03:01.2]} 3. Nf3 {[%clk 0:03:01.9]} 3... d5 {[%clk 0:03:01.2]}
4. Nc3 {[%clk 0:03:01.7]} 4... c6 {[%clk 0:03:02.1]} 5. Qb3 {[%clk 0:03:01.6]}
5... dxc4 {[%clk 0:02:54.4]} 6. Qxc4 {[%clk 0:03:01.7]} 6... b5 {[%clk
0:02:55.3]} 7. Qd3 {[%clk 0:03:02.5]} 7... a6 {[%clk 0:02:55.3]} 8. e4 {[%clk
0:03:02.2]} 8... c5 {[%clk 0:02:56.1]} 9. e5 {[%clk 0:03:03.4]} 9... cxd4 {[%clk
0:02:49.3]} 10. Nxb5 {[%clk 0:02:41.4]} 10... axb5 {[%clk 0:02:32.2]} 11. exf6
{[%clk 0:02:41.8]} 11... gxf6 {[%clk 0:01:59.1]} 12. Qxd4 {[%clk 0:02:40.7]}
12... Qxd4 {[%clk 0:01:55]} 13. Nxd4 {[%clk 0:02:40.4]} 13... b4 {[%clk
0:01:50.3]} 14. Bb5+ {[%clk 0:02:35.1]} 14... Bd7 {[%clk 0:01:49.5]} 15. Ke2
{[%clk 0:02:25.3]} 15... Bc5 {[%clk 0:01:48.7]} 16. Bxd7+ {[%clk 0:02:24.4]}
16... Nxd7 {[%clk 0:01:50.6]} 17. Nb3 {[%clk 0:02:23.4]} 17... Bd6 {[%clk
0:01:48]} 18. Be3 {[%clk 0:02:14.9]} 18... Ke7 {[%clk 0:01:48.6]} 19. Rhd1
{[%clk 0:02:11.1]} 19... Ra6 {[%clk 0:01:44.1]} 20. Rd2 {[%clk 0:02:09.7]} 20...
Ne5 {[%clk 0:01:39.4]} 21. Rc1 {[%clk 0:01:44.2]} 21... Rxa2 {[%clk 0:01:31.2]}
22. f4 {[%clk 0:01:42.2]} 22... Ng6 {[%clk 0:01:27.7]} 23. g3 {[%clk 0:01:38.7]}
23... Ra6 {[%clk 0:01:02.4]} 24. Bc5 {[%clk 0:01:33.7]} 24... Rd8 {[%clk
0:00:58.7]} 25. Rxd6 {[%clk 0:01:30.6]} 25... Rdxd6 {[%clk 0:00:58.8]} 26. Bxb4
{[%clk 0:01:23.7]} 26... Rb6 {[%clk 0:00:59.1]} 27. Rc7+ {[%clk 0:00:55.3]}
27... Kd8 {[%clk 0:00:49]} 28. Bxd6 {[%clk 0:00:55.5]} 28... Rxb3 {[%clk
0:00:49.8]} 29. Rxf7 {[%clk 0:00:56.4]} 29... Rxb2+ {[%clk 0:00:49.5]} 30. Kf3
{[%clk 0:00:53.9]} 30... Rxh2 {[%clk 0:00:45.5]} 31. Rxf6 {[%clk 0:00:54.8]}
31... Kd7 {[%clk 0:00:44]} 32. Bc5 {[%clk 0:00:53.8]} 32... Rc2 {[%clk
0:00:38.1]} 33. Be3 {[%clk 0:00:52.7]} 33... Ke7 {[%clk 0:00:37.5]} 34. Bd4
{[%clk 0:00:48.5]} 34... Rc4 {[%clk 0:00:29.1]} 35. Ke3 {[%clk 0:00:48.5]} 35...
Ra4 {[%clk 0:00:29.7]} 36. g4 {[%clk 0:00:41.2]} 36... Ra3+ {[%clk 0:00:21.9]}
37. Ke4 {[%clk 0:00:40.5]} 37... Ra4 {[%clk 0:00:23.1]} 38. g5 {[%clk
0:00:41.2]} 38... Ra5 {[%clk 0:00:19]} 39. Be3 {[%clk 0:00:38.4]} 39... Ra4+
{[%clk 0:00:19]} 40. Kf3 {[%clk 0:00:39.2]} 40... Ra3 {[%clk 0:00:19.3]} 41. Ke2
{[%clk 0:00:36.7]} 41... Ra2+ {[%clk 0:00:20]} 42. Kf3 {[%clk 0:00:37.8]} 42...
Ra3 {[%clk 0:00:21.2]} 43. Ke4 {[%clk 0:00:39]} 43... Ra4+ {[%clk 0:00:22.3]}
44. Bd4 {[%clk 0:00:40.5]} 44... Rb4 {[%clk 0:00:14.7]} 45. Kd3 {[%clk
0:00:41.2]} 45... Rb3+ {[%clk 0:00:15.5]} 46. Kc4 {[%clk 0:00:42]} 46... Rf3
{[%clk 0:00:14.3]} 47. Bc5+ {[%clk 0:00:42.7]} 47... Kd7 {[%clk 0:00:15.6]} 48.
Rf7+ {[%clk 0:00:42.7]} 48... Kc6 {[%clk 0:00:16.9]} 49. Bd4 {[%clk 0:00:15.6]}
49... Rxf4 {[%clk 0:00:12.5]} 50. Rf6 {[%clk 0:00:15.2]} 50... Kd6 {[%clk
0:00:09.5]} 51. Kd3 {[%clk 0:00:16]} 51... Rxf6 {[%clk 0:00:10.3]} 52. Bxf6
{[%clk 0:00:13.5]} 52... Kd5 {[%clk 0:00:11.5]} 53. Ke3 {[%clk 0:00:14.5]} 53...
e5 {[%clk 0:00:12.8]} 54. Kf3 {[%clk 0:00:15.3]} 54... Nf8 {[%clk 0:00:13]} 55.
Kg4 {[%clk 0:00:15]} 55... Ke6 {[%clk 0:00:13.6]} 56. Kh5 {[%clk 0:00:14.4]}
56... Kf5 {[%clk 0:00:14.7]} 57. Kh6 {[%clk 0:00:11.9]} 57... e4 {[%clk
0:00:15.9]} 58. Be7 {[%clk 0:00:09.9]} 58... Ne6 {[%clk 0:00:13]} 59. Kxh7
{[%clk 0:00:06.8]} 59... Nxg5+ {[%clk 0:00:14]} 60. Kh6 {[%clk 0:00:07.6]} 60...
Nf3 {[%clk 0:00:15.1]} 61. Kh5 {[%clk 0:00:07.3]} 61... e3 {[%clk 0:00:16.1]}
62. Bb4 {[%clk 0:00:07.9]} 62... e2 {[%clk 0:00:17.2]} 63. Ba5 {[%clk
0:00:07.4]} 63... Kf4 {[%clk 0:00:17.3]} 64. Bb4 {[%clk 0:00:03.1]} 64... Ke3
{[%clk 0:00:16.1]} 65. Bc5+ {[%clk 0:00:04.1]} 65... Nd4 {[%clk 0:00:13.9]} 66.
Bb4 {[%clk 0:00:04.5]} 66... Kd3 {[%clk 0:00:11.2]} 67. Kg4 {[%clk 0:00:04.6]}
67... Nc2 {[%clk 0:00:12.1]} 68. Ba5 {[%clk 0:00:04.9]} 68... Ke3 {[%clk
0:00:13]} 69. Kg3 {[%clk 0:00:05.3]} 69... Nd4 {[%clk 0:00:12.6]} 70. Kg2 {[%clk
0:00:05.9]} 70... Nb3 {[%clk 0:00:13.8]} 71. Bb4 {[%clk 0:00:06.5]} 71... Nd2
{[%clk 0:00:14.5]} 72. Bc5+ {[%clk 0:00:06.2]} 72... Kd3 {[%clk 0:00:15.6]} 73.
Bf2 {[%clk 0:00:07]} 73... Kc2 {[%clk 0:00:15]} 74. Bh4 {[%clk 0:00:04.5]} 74...
Kd1 {[%clk 0:00:15.8]} 75. Bg3 {[%clk 0:00:04.9]} 75... Ne4 {[%clk 0:00:16.6]}
76. Bh4 {[%clk 0:00:06]} 76... Nd2 {[%clk 0:00:16.7]} 77. Bg3 {[%clk 0:00:06.6]}
77... Nc4 {[%clk 0:00:18]} 78. Kf3 {[%clk 0:00:06.8]} 78... Ne5+ {[%clk
0:00:18.9]} 79. Ke3 {[%clk 0:00:06.8]} 79... Ng4+ {[%clk 0:00:20]} 80. Kf3
{[%clk 0:00:06.5]} 80... Nf6 {[%clk 0:00:20.7]} 81. Bh4 {[%clk 0:00:06.9]} 81...
Nd5 {[%clk 0:00:21.8]} 82. Ke4 {[%clk 0:00:07.5]} 82... Nc3+ {[%clk 0:00:22.6]}
83. Kd3 {[%clk 0:00:08.5]} 83... Nb1 {[%clk 0:00:23.5]} 84. Ke3 {[%clk
0:00:08.8]} 84... Nd2 {[%clk 0:00:24.6]} 85. Kd3 {[%clk 0:00:09.6]} 85... Nf3
{[%clk 0:00:24.2]} 86. Bg3 {[%clk 0:00:09.6]} 86... Ne1+ {[%clk 0:00:24.9]} 87.
Ke3 {[%clk 0:00:10]} 87... Nc2+ {[%clk 0:00:26.1]} 88. Kd3 {[%clk 0:00:10.9]}
88... Nb4+ {[%clk 0:00:27.4]} 89. Ke3 {[%clk 0:00:11.8]} 89... Nd5+ {[%clk
0:00:28.6]} 90. Kf3 {[%clk 0:00:12.9]} 90... Kd2 {[%clk 0:00:28.6]} 91. Bh4
{[%clk 0:00:12.9]} 91... Ne3 {[%clk 0:00:29.6]} 92. Bg3 {[%clk 0:00:12.4]} 92...
Nf5 {[%clk 0:00:30.6]} 93. Bf2 {[%clk 0:00:13.3]} 93... Nd4+ {[%clk 0:00:30.6]}
94. Ke4 {[%clk 0:00:13.3]} 94... Nc2 {[%clk 0:00:29.9]} 95. Kf3 {[%clk
0:00:13.6]} 95... Ne1+ {[%clk 0:00:30]} 96. Ke4 {[%clk 0:00:14.6]} 96... Nd3
{[%clk 0:00:31.1]} 97. Bg3 {[%clk 0:00:14.8]} 97... Nc5+ {[%clk 0:00:29.6]} 98.
Kf3 {[%clk 0:00:15.5]} 98... Nb3 {[%clk 0:00:30.7]} 99. Bh4 {[%clk 0:00:15.4]}
99... Nd4+ {[%clk 0:00:31.8]} 100. Ke4 {[%clk 0:00:16.5]} 100... Nc2 {[%clk
0:00:32.8]} 101. Kf3 {[%clk 0:00:16.6]} 101... Ne3 {[%clk 0:00:33.9]} 102. Ke4
{[%clk 0:00:14.7]} 102... Nd1 {[%clk 0:00:31.8]} 103. Kf3 {[%clk 0:00:14.8]}
103... Nb2 {[%clk 0:00:29.6]} 104. Bg3 {[%clk 0:00:14.5]} 104... Nd3 {[%clk
0:00:30.4]} 105. Bh4 {[%clk 0:00:14.7]} 105... Ne1+ {[%clk 0:00:30.1]} 106. Ke4
{[%clk 0:00:14.8]} 106... Kd1 {[%clk 0:00:31.5]} 107. Bg3 {[%clk 0:00:13.7]}
107... Nc2 {[%clk 0:00:31.5]} 108. Bh4 {[%clk 0:00:14]} 108... Nb4 {[%clk
0:00:32.4]} 109. Bg3 {[%clk 0:00:14.5]} 109... Kd2 {[%clk 0:00:31.4]} 110. Bh4
{[%clk 0:00:15.3]} 110... Nd3 {[%clk 0:00:32.5]} 111. Bg3 {[%clk 0:00:15.5]}
111... Nc5+ {[%clk 0:00:33.7]} 112. Kf3 {[%clk 0:00:16]} 112... Ne6 {[%clk
0:00:34.9]} 113. Bh4 {[%clk 0:00:15.8]} 113... Ng7 {[%clk 0:00:35.5]} 114. Kg4
{[%clk 0:00:13.7]} 114... Ke3 {[%clk 0:00:34.3]} 115. Be1 {[%clk 0:00:13.8]}
115... Ne6 {[%clk 0:00:35]} 116. Bh4 {[%clk 0:00:13.4]} 116... Nf4 {[%clk
0:00:33.6]} 117. Be1 {[%clk 0:00:12.5]} 117... Nd3 {[%clk 0:00:34]} 118. Ba5
{[%clk 0:00:09.8]} 118... Nf2+ {[%clk 0:00:33.4]} 119. Kg3 {[%clk 0:00:06.5]}
119... Ne4+ {[%clk 0:00:34.3]} 120. Kg2 {[%clk 0:00:08.1]} 120... Nd2 {[%clk
0:00:35.4]} 121. Bb6+ {[%clk 0:00:09.7]} 121... Kd3 {[%clk 0:00:36.7]} 122. Bf2
{[%clk 0:00:10.8]} 122... Ne4 {[%clk 0:00:37.6]} 123. Bh4 {[%clk 0:00:10.8]}
123... Ke3 {[%clk 0:00:37.8]} 124. Be1 {[%clk 0:00:10.6]} 124... Nc5 {[%clk
0:00:34.6]} 125. Bf2+ {[%clk 0:00:10.1]} 125... Kd3 {[%clk 0:00:30.1]} 126. Kf3
{[%clk 0:00:09.6]} 126... Ne4 {[%clk 0:00:29.7]} 127. Bh4 {[%clk 0:00:10.1]}
127... Nd2+ {[%clk 0:00:29.2]} 128. Kf2 {[%clk 0:00:10.3]} 128... Ne4+ {[%clk
0:00:29.9]} 129. Kf3 {[%clk 0:00:11.2]} 129... Nc5 {[%clk 0:00:29.7]} 130. Be1
{[%clk 0:00:10.8]} 130... Nb3 {[%clk 0:00:30.8]} 1/2-1/2

[Event "*** MasterClass Titled Tuesday Blitz"]
[Site "Chess.com"]
[Date "2017.12.05"]
[Round "10"]
[White "sandromareco"]
[Black "Diwi89"]
[Result "0-1"]
[WhiteElo "2616"]
[BlackElo "2728"]
[TimeControl "180+2"]
[EndTime "16:23:55 PST"]
[Termination "Diwi89 won by checkmate"]

1. e4 {[%clk 0:03:01.9]} 1... c5 {[%clk 0:02:58.1]} 2. Nf3 {[%clk 0:03:02.9]}
2... Nc6 {[%clk 0:02:59.1]} 3. d4 {[%clk 0:03:04.1]} 3... cxd4 {[%clk
0:03:00.2]} 4. Nxd4 {[%clk 0:03:05.4]} 4... Nf6 {[%clk 0:03:01.5]} 5. Nc3 {[%clk
0:03:06.4]} 5... e5 {[%clk 0:03:01.9]} 6. Ndb5 {[%clk 0:03:07.6]} 6... d6 {[%clk
0:03:03.1]} 7. Bg5 {[%clk 0:03:07.8]} 7... a6 {[%clk 0:03:04.7]} 8. Na3 {[%clk
0:03:09.1]} 8... b5 {[%clk 0:03:06.2]} 9. Nd5 {[%clk 0:03:09.4]} 9... Be7 {[%clk
0:03:07.7]} 10. Bxf6 {[%clk 0:03:10.8]} 10... Bxf6 {[%clk 0:03:09.2]} 11. c4
{[%clk 0:03:12.1]} 11... Nd4 {[%clk 0:03:07.3]} 12. cxb5 {[%clk 0:03:08.9]}
12... O-O {[%clk 0:03:08.2]} 13. Bc4 {[%clk 0:03:06.3]} 13... axb5 {[%clk
0:03:04.7]} 14. Nxb5 {[%clk 0:03:06.1]} 14... Nxb5 {[%clk 0:03:05.8]} 15. Bxb5
{[%clk 0:03:07]} 15... Qa5+ {[%clk 0:03:07]} 16. Nc3 {[%clk 0:03:04.5]} 16... d5
{[%clk 0:03:08.4]} 17. exd5 {[%clk 0:02:52.6]} 17... e4 {[%clk 0:03:09.2]} 18.
Qb3 {[%clk 0:02:53.9]} 18... Rb8 {[%clk 0:03:06.3]} 19. a4 {[%clk 0:02:53.5]}
19... Bxc3+ {[%clk 0:03:00]} 20. bxc3 {[%clk 0:02:46.4]} 20... Rxb5 {[%clk
0:02:53]} 21. Qxb5 {[%clk 0:02:47.2]} 21... Qxc3+ {[%clk 0:02:52.1]} 22. Ke2
{[%clk 0:02:48.5]} 22... Bg4+ {[%clk 0:02:50.5]} 23. f3 {[%clk 0:02:49.8]} 23...
exf3+ {[%clk 0:02:51]} 24. Kf2 {[%clk 0:02:51]} 24... Qd2+ {[%clk 0:02:50]} 25.
Kg3 {[%clk 0:02:52.3]} 25... Qxg2+ {[%clk 0:02:49.2]} 26. Kf4 {[%clk 0:02:53.6]}
26... f2 {[%clk 0:02:47.1]} 27. Qd3 {[%clk 0:02:44.4]} 27... Re8 {[%clk
0:02:43.1]} 28. h4 {[%clk 0:02:30.4]} 28... Be2 {[%clk 0:02:36.4]} 29. Qh3
{[%clk 0:02:12.6]} 29... Re4+ {[%clk 0:02:36.8]} 30. Kf5 {[%clk 0:02:13.5]}
30... Qg6# {[%clk 0:02:37.9]} 0-1

[Event "*** MasterClass Titled Tuesday Blitz"]
[Site "Chess.com"]
[Date "2017.12.05"]
[Round "10"]
[White "Sola00"]
[Black "FearNoEvil12"]
[Result "0-1"]
[WhiteElo "1542"]
[BlackElo "2072"]
[TimeControl "180+2"]
[EndTime "16:24:15 PST"]
[Termination "FearNoEvil12 won by resignation"]

1. d4 {[%clk 0:03:01.9]} 1... b5 {[%clk 0:03:00.3]} 2. e4 {[%clk 0:02:57.7]}
2... a6 {[%clk 0:03:00.8]} 3. Bd3 {[%clk 0:02:55.9]} 3... Bb7 {[%clk 0:03:01.7]}
4. Nf3 {[%clk 0:02:57.4]} 4... e6 {[%clk 0:03:03.1]} 5. Be3 {[%clk 0:02:57.2]}
5... Nf6 {[%clk 0:03:04.5]} 6. Nbd2 {[%clk 0:02:57.7]} 6... d6 {[%clk
0:03:04.6]} 7. c3 {[%clk 0:02:59.1]} 7... Nbd7 {[%clk 0:03:05.9]} 8. O-O {[%clk
0:02:59.4]} 8... h6 {[%clk 0:03:07.3]} 9. Qc2 {[%clk 0:03:00.8]} 9... g5 {[%clk
0:03:08.1]} 10. Rfe1 {[%clk 0:02:52]} 10... g4 {[%clk 0:03:08.8]} 11. Nh4 {[%clk
0:02:42.5]} 11... Nh7 {[%clk 0:03:03.5]} 12. g3 {[%clk 0:02:40.4]} 12... Be7
{[%clk 0:03:04.9]} 13. Ng2 {[%clk 0:02:40.9]} 13... h5 {[%clk 0:03:06]} 14. e5
{[%clk 0:02:38.1]} 14... Ng5 {[%clk 0:03:02.6]} 15. Bxg5 {[%clk 0:02:36.1]}
15... Bxg5 {[%clk 0:03:03]} 16. Ne4 {[%clk 0:02:32.1]} 16... dxe5 {[%clk
0:03:01.4]} 17. dxe5 {[%clk 0:02:25.4]} 17... Nxe5 {[%clk 0:02:59.2]} 18. Nxg5
{[%clk 0:02:13.2]} 18... Qxg5 {[%clk 0:02:56.5]} 19. Nf4 {[%clk 0:02:12.2]}
19... Nf3+ {[%clk 0:02:54.4]} 20. Kf1 {[%clk 0:02:13.7]} 20... Nxh2+ {[%clk
0:02:52.6]} 21. Ke2 {[%clk 0:02:12.7]} 21... O-O-O {[%clk 0:02:48.2]} 22. Kd2
{[%clk 0:02:12.7]} 22... e5 {[%clk 0:02:42.6]} 23. Rad1 {[%clk 0:02:00.3]} 23...
exf4 {[%clk 0:02:41.4]} 24. gxf4 {[%clk 0:01:59.2]} 24... Qxf4+ {[%clk
0:02:41.5]} 25. Re3 {[%clk 0:01:56.4]} 25... Qxf2+ {[%clk 0:02:40.5]} 26. Re2
{[%clk 0:01:57]} 26... Qf4+ {[%clk 0:02:40.6]} 27. Re3 {[%clk 0:01:54.7]} 27...
Rxd3+ {[%clk 0:02:31.6]} 28. Qxd3 {[%clk 0:01:54.4]} 28... Rd8 {[%clk
0:02:32.8]} 29. Qxd8+ {[%clk 0:01:54.8]} 29... Kxd8 {[%clk 0:02:32.7]} 30. Re1
{[%clk 0:01:56.7]} 30... Nf3+ {[%clk 0:02:31.5]} 31. Kc1 {[%clk 0:01:56.4]}
31... Nxe1 {[%clk 0:02:32.4]} 0-1

[Event "*** MasterClass Titled Tuesday Blitz"]
[Site "Chess.com"]
[Date "2017.12.05"]
[Round "10"]
[White "josemoramoron"]
[Black "evgenysharapov"]
[Result "0-1"]
[WhiteElo "2189"]
[BlackElo "2322"]
[TimeControl "180+2"]
[EndTime "16:24:55 PST"]
[Termination "evgenysharapov won by resignation"]

1. e4 {[%clk 0:03:01.9]} 1... c5 {[%clk 0:03:00.3]} 2. Nf3 {[%clk 0:03:02.2]}
2... d6 {[%clk 0:03:00.9]} 3. d4 {[%clk 0:03:02.4]} 3... cxd4 {[%clk 0:03:01.6]}
4. Nxd4 {[%clk 0:03:04.3]} 4... Nf6 {[%clk 0:03:02.4]} 5. Nc3 {[%clk 0:03:05.5]}
5... Nc6 {[%clk 0:03:03.2]} 6. Bc4 {[%clk 0:03:05.1]} 6... Qb6 {[%clk
0:03:02.8]} 7. Be3 {[%clk 0:03:03.9]} 7... Qxb2 {[%clk 0:03:00.7]} 8. Ndb5
{[%clk 0:03:04.8]} 8... Qb4 {[%clk 0:02:54.2]} 9. Bd3 {[%clk 0:03:05.9]} 9...
Qa5 {[%clk 0:02:48.6]} 10. Rb1 {[%clk 0:03:07.2]} 10... e6 {[%clk 0:02:23.3]}
11. O-O {[%clk 0:03:04.4]} 11... Be7 {[%clk 0:02:21.7]} 12. Bd2 {[%clk
0:02:55.7]} 12... Qd8 {[%clk 0:02:21.2]} 13. Ne2 {[%clk 0:02:49.5]} 13... O-O
{[%clk 0:02:16.4]} 14. Ng3 {[%clk 0:02:50]} 14... a6 {[%clk 0:02:14.6]} 15. Nc3
{[%clk 0:02:50.8]} 15... b5 {[%clk 0:02:05.2]} 16. f4 {[%clk 0:02:50.7]} 16...
Bb7 {[%clk 0:02:00.6]} 17. Qe2 {[%clk 0:02:47.3]} 17... Qc7 {[%clk 0:01:51.8]}
18. f5 {[%clk 0:02:40.5]} 18... Ne5 {[%clk 0:01:42.2]} 19. Rb3 {[%clk
0:02:29.3]} 19... Rac8 {[%clk 0:01:40.2]} 20. Kh1 {[%clk 0:02:27.4]} 20... Nc4
{[%clk 0:01:27.1]} 21. Bg5 {[%clk 0:02:20.7]} 21... Na5 {[%clk 0:01:24.8]} 22.
Rb4 {[%clk 0:01:55.8]} 0-1

[Event "*** MasterClass Titled Tuesday Blitz"]
[Site "Chess.com"]
[Date "2017.12.05"]
[Round "10"]
[White "TomasPabloFerreira"]
[Black "saikrishnaReturns"]
[Result "0-1"]
[WhiteElo "974"]
[BlackElo "2419"]
[TimeControl "180+2"]
[EndTime "16:25:02 PST"]
[Termination "saikrishnaReturns won by resignation"]

1. e4 {[%clk 0:03:01.9]} 1... e5 {[%clk 0:02:58.2]} 2. Nf3 {[%clk 0:03:02.8]}
2... Nc6 {[%clk 0:03:00.1]} 3. Bb5 {[%clk 0:03:04]} 3... a6 {[%clk 0:03:00.2]}
4. Bxc6 {[%clk 0:03:05.1]} 4... dxc6 {[%clk 0:03:01.2]} 5. d3 {[%clk 0:03:06.4]}
5... f6 {[%clk 0:03:02.3]} 6. O-O {[%clk 0:03:03.8]} 6... c5 {[%clk 0:03:03.5]}
7. Nc3 {[%clk 0:03:02.4]} 7... g5 {[%clk 0:03:02.7]} 8. Be3 {[%clk 0:03:03]}
8... h5 {[%clk 0:03:02.7]} 9. Nd5 {[%clk 0:02:40]} 9... Be6 {[%clk 0:03:01.4]}
10. c4 {[%clk 0:02:37.6]} 10... c6 {[%clk 0:03:02.4]} 11. Nc3 {[%clk 0:02:34.5]}
11... b5 {[%clk 0:02:59.8]} 12. cxb5 {[%clk 0:02:29.4]} 12... axb5 {[%clk
0:02:59]} 13. b3 {[%clk 0:02:21.8]} 13... h4 {[%clk 0:02:50.4]} 14. h3 {[%clk
0:02:13.9]} 14... g4 {[%clk 0:02:49.9]} 15. Nh2 {[%clk 0:01:55.5]} 15... gxh3
{[%clk 0:02:47.3]} 16. gxh3 {[%clk 0:01:53.1]} 16... Bxh3 {[%clk 0:02:45.7]} 17.
Re1 {[%clk 0:01:38.9]} 17... Qd7 {[%clk 0:02:29.3]} 18. Bd2 {[%clk 0:01:17.2]}
18... Qg7+ {[%clk 0:02:21.9]} 19. Qg4 {[%clk 0:00:44.7]} 19... Bxg4 {[%clk
0:02:18.7]} 20. Nxg4 {[%clk 0:00:42.5]} 20... Qxg4+ {[%clk 0:02:20.6]} 21. Kf1
{[%clk 0:00:43.6]} 21... h3 {[%clk 0:02:19.3]} 0-1